Cogmind - Beta 13 @@@ ROGUE MODE // 2024.04.16 @ 23:11:57 Player: Michael Result: Destroyed by FU-LO6(R) with Subdweller Laser Performance ------------- Evolutions (0) 0 Regions Visited (2) 400 Robots Destroyed (17) 85 Value Destroyed (485) 485 Prototype IDs (1) 20 Alien Tech Used (0) 0 Bonus (-32) -32 TOTAL SCORE: 958 Bonus ------- Follower Combat Kills 30 Friendly Fire -62 Cogmind --------- Core Integrity 0/250 Matter 255/300 Energy 157/170 System Corruption 2% Temperature Cool (12) Movement Rolling (110) Ox2 Location -10/Subcaves Parts ------- > --- POWER (1) -------- Makeshift Power Source > --- PROPULSION (2) --- Wheel Wheel > --- UTILITY (2) ------ High-capacity Storage Unit V3-11A's Pendant > --- WEAPON (2) ------- Heavy Assault Rifle (fused) Mining Laser > --- INVENTORY (20) --- Subdweller Power Source Wheel Wheel Wheel Compact Wheel Compact Wheel Compact Wheel Compact Wheel Compact Wheel Heat Sink Heat Sink Assault Rifle Light Assault Rifle Heavy Assault Rifle Heavy Assault Rifle Heavy Assault Rifle Grenade Launcher Grenade Launcher Dirty Datajack (20) Makeshift Hammer Peak State ------------ > --- POWER ------------ Makeshift Power Source > --- PROPULSION ------- Wheel Wheel > --- UTILITY ---------- High-capacity Storage Unit V3-11A's Pendant > --- WEAPON ----------- Heavy Assault Rifle Mining Laser > --- INVENTORY -------- Subdweller Power Source Wheel Wheel Wheel Compact Wheel Compact Wheel Compact Wheel Compact Wheel Compact Wheel Heat Sink Heat Sink Assault Rifle Light Assault Rifle Heavy Assault Rifle Heavy Assault Rifle Heavy Assault Rifle Grenade Launcher Grenade Launcher Dirty Datajack Makeshift Hammer [Rating: 16] Favorites ----------- Power Makeshift Power Source Engine Makeshift Power Source Propulsion Wheel Treads Light Treads Wheel Wheel Utility High-capacity Storage Unit Device Terrain Scanner Storage High-capacity Storage Unit Processor Signal Interpreter Hackware Hacking Suite Weapon Heavy Assault Rifle Ballistic Gun Heavy Assault Rifle Launcher Grenade Launcher Special Weapon Mining Laser Build | -11 -10 -10 ------- Run | Yrd Mat Sub Slots Evolved . | . . . Power . | . . . Propulsion . | . . . Utility . | . . . Weapon . | . . . Parts Attached 33 | 7 18 8 Power 4 | 2 . 2 Engine 4 | 2 . 2 Core . | . . . Reactor . | . . . Propulsion 7 | 2 3 2 Treads 2 | 2 . . Leg . | . . . Wheel 5 | . 3 2 Hover . | . . . Flight . | . . . Utility 8 | 1 6 1 Device 3 | . 2 1 Storage 3 | 1 2 . Processor 1 | . 1 . Hackware 1 | . 1 . Protection . | . . . Artifact . | . . . Weapon 14 | 2 9 3 Energy Gun . | . . . Energy Cannon . | . . . Ballistic Gun 7 | 2 4 1 Ballistic Cannon . | . . . Launcher 4 | . 4 . Special Weapon 3 | . 1 2 Impact Weapon . | . . . Slashing Weapon . | . . . Piercing Weapon . | . . . Special Melee Weapon . | . . . Unidentified Prototypes 1 | . . 1 Parts Lost 3 | . 2 1 Power . | . . . Propulsion . | . . . Utility 1 | . 1 . Weapon 2 | . 1 1 Highest Loss Streak 1 | . 1 1 To Critical Strikes . | . . . Average Slot Usage (%) 98 | . 97 99 Engine 14 | . 14 14 Wheel 27 | . 27 28 Device 10 | . 2 14 Storage 14 | . 14 14 Processor 1 | . 3 . Hackware 2 | . 6 . Ballistic Gun 15 | . 17 14 Launcher 2 | . 8 . Special Weapon 9 | . . 13 Naked Turns . | . . . Heaviest Build 52 | 13 52 52 Greatest Support 40 | 40 40 30 Greatest Overweight (x) 4 | . 1 4 Average Overweight (x) 1 | . . 1 Largest Inventory Capacity 20 | 8 20 20 Average Capacity 19 | 6 19 20 Most Carried 20 | 6 20 20 Average Carried 17 | 3 15 19 Final Capacity 20 | 8 20 20 Final Carried 20 | 6 20 20 Class Distribution -------------------- 100% | Mutant Dominant Class ---------------- Mutant | -10/Materials Mutant | -10/Subcaves Resources | -11 -10 -10 ----------- Run | Yrd Mat Sub Matter Collected 923 | 200 208 515 Remotely . | . . . Salvage Created 585 | . 369 216 Parts 38 | . 22 16 Haulers Intercepted . | . . . Recyclers Shooed . | . . . Parts Field Recycled . | . . . Retrieved Matter . | . . . Parts Self-Destructed 14 | . . 14 Prevented . | . . . Kills | -11 -10 -10 ------- Run | Yrd Mat Sub Combat Hostiles Destroyed 11 | . 6 5 Guns 6 | . 1 5 AOE 5 | . 5 . Classes Destroyed 6 | . 5 1 Builder 2 | . 2 . Tunneler 1 | . 1 . Recycler 2 | . 2 . Operator 1 | . 1 . Grunt 6 | . 6 . Subdweller 5 | . . 5 Best Kill Streak 3 | . 3 2 Combat Bots Only 2 | . 2 2 Max Kills in Single Turn 3 | . 3 1 Gunslinging . | . . . Exploded 2 | . 2 . Melee . | . . . Uniques/NPCs Destroyed . | . . . Combat | -11 -10 -10 -------- Run | Yrd Mat Sub Hostile Shots Fired 55 | . 29 26 Missed 16 | . 7 9 Damage Taken 741 | . 378 363 Core 257 | . 91 166 Absorbed by Shields . | . . . Regen/Repaired (Parts) 64 | . 64 . Core Remaining (%) 100 | 100 . . Volleys Fired 119 | . 35 84 Largest 2 | . 2 2 Hottest 130 | . 130 123 Shots Fired 163 | . 55 108 Gun 85 | . 37 48 Cannon . | . . . Launcher 17 | . 17 . Special 61 | . 1 60 Kinetic 85 | . 37 48 Thermal 61 | . 1 60 Explosive 17 | . 17 . Electromagnetic . | . . . Robot Hit Streak 18 | . 7 18 Robot Miss Streak 6 | . 6 1 Penetration Max . | . . . Secondary Targets . | . . . Shots Hit Robots 45 | . 20 25 Core Hits 32 | . 22 10 Critical Kills . | . . . Critical Parts Destroyed . | . . . Critical Strikes . | . . . Melee Attacks . | . . . Impact . | . . . Slashing . | . . . Piercing . | . . . Sneak Attacks . | . . . Combat Hostiles . | . . . Follow-up Attacks . | . . . Damage Inflicted 1344 | . 895 449 Guns 564 | . 187 377 Cannons . | . . . Explosions 693 | . 693 . Melee . | . . . Ramming 15 | . 15 . Kinetic 564 | . 187 377 Thermal 72 | . . 72 Explosive 693 | . 693 . Electromagnetic . | . . . Impact . | . . . Slashing . | . . . Piercing . | . . . Highest Corruption 2 | . 2 2 Average Corruption 1 | . 1 2 Corruption Purged . | . . . Corruption Blocked . | . . . Effects 26 | . 3 23 Message Errors 6 | . . 6 Matter Fused 8 | . 1 7 Heat Flow Errors 1 | . 1 . Energy Discharges 3 | . 1 2 Parts Fused 1 | . . 1 Data Loss (minor) 3 | . . 3 Misfires 3 | . . 3 Alerts 1 | . . 1 Overload Shots . | . . . Overflow Damage 2 | . 2 . Projectiles . | . . . Explosions 2 | . 2 . Melee . | . . . Knockbacks 1 | . 1 . Impact 1 | . 1 . Kinetic . | . . . Secondary . | . . . Self-Inflicted Damage 76 | . 76 . Shots 2 | . 2 . Rammed 2 | . 2 . Targets Rammed 2 | . 2 . Kicked . | . . . Crushed . | . . . Highest Temperature 274 | . 274 . Average Temperature 52 | . 52 . Received Heat Transfer 261 | . 186 75 Siege Activations . | . . . Robots Corrupted . | . . . Combat Hostiles . | . . . Parts Fried . | . . . Impact Corruptions . | . . . Robots Melted . | . . . Combat Hostiles . | . . . Parts Melted . | . . . Heat Transferred 150 | . . 150 Parts Sabotaged . | . . . Parts Stolen . | . . . Parts Stripped . | . . . Power Chain Reactions . | . . . Alert | -11 -10 -10 ------- Run | Yrd Mat Sub Peak Influence 341 | . 341 . Initial . | . . . Average 163 | . 177 . Maximum Alert Level 1 | . 1 . Low Security (%) 58 | 100 55 . Level 1 41 | . 44 . Level 2 . | . . . Level 3 . | . . . Level 4 . | . . . Level 5 . | . . . High Security . | . . . Max Security . | . . . Squads Dispatched 1 | . 1 . Investigation 1 | . 1 . Extermination . | . . . Reinforcement . | . . . Assault . | . . . Garrison . | . . . Intercept . | . . . Searches Triggered . | . . . Construction Impeded . | . . . Haulers Reinforced . | . . . Active Scanning Responses . | . . . Cargo Convoy Interrupts . | . . . Stealth | -11 -10 -10 --------- Run | Yrd Mat Sub Distress Signals . | . . . Communications Jammed . | . . . Distress Signals . | . . . Times Spotted 26 | . 13 13 Peak Tracking Total 3 | . 3 2 Tactical Retreats . | . . . Traps | -11 -10 -10 ------- Run | Yrd Mat Sub Traps Triggered 2 | . 2 . Indirectly . | . . . Trap Hack Attempts . | . . . Triggered . | . . . Disarmed . | . . . Reprogrammed . | . . . Reused . | . . . Traps Extracted . | . . . Installed . | . . . Triggered . | . . . Most Traps Carried 1 | . . 1 Machines | -11 -10 -10 ---------- Run | Yrd Mat Sub Machines Disabled 1 | . 1 . Max in Single Turn 1 | . 1 . Machines Repaired . | . . . Machines Dismantled . | . . . Machines Sabotaged . | . . . Overloaded Fab Kills . | . . . Hacking | -11 -10 -10 --------- Run | Yrd Mat Sub Machines Accessed 2 | . 2 . Terminals . | . . . Fabricators . | . . . Repair Stations 1 | . 1 . Recycling Units 1 | . 1 . Scanalyzers . | . . . Garrison Access . | . . . Total Hacks 5 | . 5 . Successful 3 | . 3 . Failed 2 | . 2 . Catastrophic . | . . . Database Lockouts . | . . . Manual . | . . . Terminals . | . . . Fabricators . | . . . Repair Stations 4 | . 4 . Recycling Units 1 | . 1 . Scanalyzers . | . . . Garrison Access . | . . . Terminal Hacks . | . . . Fabricator Hacks . | . . . Repair Station Hacks 2 | . 2 . Scan Component 1 | . 1 . Repair 1 | . 1 . Recycling Unit Hacks 1 | . 1 . Report Inventory 1 | . 1 . Scanalyzer . | . . . Garrison Access Hacks . | . . . Unauthorized Hacks . | . . . Terminals . | . . . Fabricators . | . . . Repair Stations . | . . . Recycling Units . | . . . Scanalyzers . | . . . Garrison Access . | . . . Data Cores Recovered 1 | . 1 . Used . | . . . Hacking Detections 1 | . 1 . Full Trace Events 1 | . 1 . Feedback Events . | . . . Feedback Blocked . | . . . Robot Schematics Acquired . | . . . Robots Built . | . . . Authchips . | . . . Time . | . . . Total Robot Build Rating . | . . . Part Schematics Acquired . | . . . Parts Built . | . . . Authchips . | . . . Time . | . . . Total Part Build Rating . | . . . Parts Repaired 1 | . 1 . Time 13 | . 13 . Parts Recycled . | . . . Recycled Matter . | . . . Retrieved Matter . | . . . Retrieved Components . | . . . Parts Scanalyzed . | . . . Part Schematics Acquired . | . . . Parts Damaged . | . . . Bothacking | -11 -10 -10 ------------ Run | Yrd Mat Sub Used RIF Installer . | . . . Robots Hacked . | . . . Non-combat . | . . . Combat . | . . . Robot Hacks Applied . | . . . Relay Couplers Released . | . . . Fabnet Peak Effective % . | . . . Robots Rewired . | . . . Allies Hacked . | . . . Hacks Repelled . | . . . Allies | -11 -10 -10 -------- Run | Yrd Mat Sub Total Allies 6 | . . 6 Largest Group 6 | . . 6 Highest-Rated Group 114 | . . 114 Highest-Rated Ally 19 | . . 19 Total Orders . | . . . Ally Attacks 5 | . . 5 Total Damage 43 | . . 43 Kills 1 | . . 1 Allies Corrupted . | . . . Allies Melted . | . . . Intel | -11 -10 -10 ------- Run | Yrd Mat Sub Robot Analysis Total . | . . . Derelict Logs Recovered . | . . . Drone Launches . | . . . Drone Recoveries . | . . . Exploration | -11 -10 -10 ------------- Run | Yrd Mat Sub Turns Passed 3419 | 90 1095 2234 Spaces Moved 2256 | 51 683 1522 Core 5 | 5 . . Treads 62 | 46 16 . Legs . | . . . Wheels 2189 | . 667 1522 Hover . | . . . Flight . | . . . Fastest Speed 50 | 50 105 105 Average Speed 109 | 149 106 109 Slowest Speed 160 | 160 160 140 Overloaded Moves . | . . . Propulsion Burnouts . | . . . Robots Hopped . | . . . Cave-ins Triggered . | . . . Exploration Rate (%) 55 | 3 81 81 Regions Visited 2 Branch Regions 1 Pre-discovered Areas . | . . . Known Exits Taken . | . . . Unknown Exits Taken 2 | 1 1 . Scrap Searched 2 | . . 2 Spaces Dug 3 | . . 3 Terrain Destroyed 86 | . 83 3 Melee . | . . . Projectile 3 | . . 3 AOE 83 | . 83 . Terrain Rammed . | . . . Walls Destroyed . | . . . Machines Disabled . | . . . Actions | -11 -10 -10 --------- Run | Yrd Mat Sub Total 2936 | 62 998 1876 Wait 472 | . 222 250 Move 2254 | 50 682 1522 Hop . | . . . Pick Up 37 | 5 27 5 Fast Attach 9 | 6 2 1 Attach 7 | . 5 2 Detach . | . . . Swap 17 | 1 11 5 Drop 19 | . 12 7 Fire 119 | . 35 84 Melee . | . . . Ram 2 | . 2 . Kick . | . . . Crush . | . . . Escape Stasis . | . . . Rewire . | . . . Trap . | . . . Miscellaneous . | . . . Route ------- -11/Scrapyard -10/Materials (discovered 4 exits: [*Mat] / [*Min x2] / [*Sub]) -10/Subcaves (discovered 2 exits: [*Mat x2]) History --------- Turn | Location | Event 51 | -11/Scrapyard | Discovered new exit (range 14) 91 | -11/Scrapyard | Entered Materials 304 | -10/Materials | Build established: Mutant 329 | -10/Materials | Discovered new exit (range 16) 438 | -10/Materials | Repaired Assault Rifle 706 | -10/Materials | Discovered new exit (range 8) 955 | -10/Materials | Discovered new exit (range 8) 1172 | -10/Materials | Discovered new exit (range 4) 1186 | -10/Materials | Entered Subcaves 1697 | -10/Subcaves | Core integrity fell below 50% 2005 | -10/Subcaves | A swath of the cavern ceiling suddenly collapsed 2276 | -10/Subcaves | Shifting Twisted Machinery released Sub. Beam Cannon 2294 | -10/Subcaves | A swath of the cavern ceiling suddenly collapsed 2329 | -10/Subcaves | Shifting Twisted Machinery released Shrapnel Trap 2456 | -10/Subcaves | Visited triangular shrine 2463 | -10/Subcaves | Found Prototype Device 2463 | -10/Subcaves | Identified V3-11A's Pendant 2468 | -10/Subcaves | Befriended Subdweller 2613 | -10/Subcaves | Befriended Subdweller 2641 | -10/Subcaves | Discovered new exit (range 14) 2698 | -10/Subcaves | Befriended Subdweller 2716 | -10/Subcaves | Shifting Twisted Machinery released Mak. System Shield 2728 | -10/Subcaves | Shifting Twisted Machinery released Mak. Light Armor Plating 3048 | -10/Subcaves | Befriended Subdweller 3048 | -10/Subcaves | Befriended Subdweller 3113 | -10/Subcaves | Befriended Subdweller 3113 | -10/Subcaves | Core integrity fell below 20% 3154 | -10/Subcaves | Shifting Twisted Machinery released Spk. Treads 3157 | -10/Subcaves | Shifting Twisted Machinery released Sub. Beam Cannon 3408 | -10/Subcaves | Discovered new exit (range 6) 3418 | -10/Subcaves | A Subdweller sparked back to life 3418 | -10/Subcaves | A Subdweller sparked back to life 3418 | -10/Subcaves | A Subdweller sparked back to life 3420 | -10/Subcaves | Destroyed by FU-LO6(R) with Subdweller Laser Last Messages --------------- 03113_ YR-4UA(R): "SUBSUB?" 03116_ Acquired 27 matter. Spk. Treads falls loose from the Twisted Machinery. Sub. Beam Cannon falls loose from the Twisted Machinery. 03164_ System corrupted: Matter fused (-5). 03221_ System corrupted: Matter fused (-10). 03267_ System corrupted: FCS attempts to trigger Hvy. Assault Rifle. 03267_ System corrupted: Hvy. Assault Rifle misfires. 03287_ System corrupted: Component data lost. 03408_ EXIT=FOUND 03418_ OP-G45(R) creaks and sparks as it begins to move. 03418_ BG-5JE(R) creaks and sparks as it begins to move. 03418_ FU-LO6(R) creaks and sparks as it begins to move. Map ----- +----------------------------------------------------+ | ????????????????# ### #??? #?????? | | ????????????????# #??####?? #?????? | | ????????????????# ##?????? ##????? | | ????????????????# ### #????? #????? | | ????????????????####??# #???## #????? | | ??????????????????????# #### #???????? | | ??????????????????????# #????????? | | ??????????????????????# ####????????? | | ??????????????????????# ##???????????? | | ??????????????????????# ##???#####????? | | ??????????????????????# ##???# ###### | | ??????????????????????# ###### ## # | | ??????????????????????# ## ## # | | ??????????????????????# #?# # | | ??????????????????????## ### | | ???????????????????????## | | ????????????????????????## | | ?????????????????????????## | | ??????????????????????????# # | | ??????????????????????????#### ## | | ??????????????####<##???????# ## | | ??????????????# #???????# ## #### | | ??????????????# < <#??###### ## #?? | | ??????????????# & #?## # ### ####?? | | ??????????????#< R #?# ## # #$????? | | ??????????????# R@R##?# ### #?#????? | | ??????????????## R ### ##?######??????? | | ???????????????# < RR## ##??????????????? | | ???????????????## R R #???????????????? | | ????????????????#### #??????????????? | | ???????????????????# # #?????????????? | | ???????????????????# ######?????????????? | | ???????????????????# ??????????????????? | | ??????????????????? ##?????????????????? | | ?????????????????? ??????????????????? | | ????????????????? # ??????????????????? | | ????????????????# ### ?????????????????? | | ????????????????#???? ?????????????????? | | ????????????????????? ?????????????????? | | ????????????????????? ????????????????? | | ????????????????????? ????????????????? | | ????????????????????? ## ????????????????? | | ?????????????????????#??#????????????????? | | ?????????????????????????????????????????? | | ?????????????????????????????????????????? | | ?????????????????????????????????????????? | | ?????????????????????????????????????????? | | ?????????????????????????????????????????? | | ?????????????????????????????????????????? | | ?????????????????????????????????????????? | +----------------------------------------------------+ Best States ------------- Heat Dissipation 25 Energy Generation 15 Energy Capacity 250 Matter Stores 300 Matter Capacity 300 Sight Range 16 Terrain Scan Range 14 Terrain Scan Density 10 Evasion (%) 40 Recoil Reduction 2 Offensive Hacking 10 Item Schematics ----------------- None Robot Schematics ------------------ None Fabricated ------------ Nothing Alien Tech Used ----------------- None Achievements -------------- None Challenges ------------ None Game ------ Seed HardlightCompactLaser Manual? 0 Play Time 00:27:26 Cumulative 15.4 hours Start 2024.04.16 @ 22:28:13 End 2024.04.16 @ 23:11:57 Sessions 1 Manual Loads 0 Difficulty Rogue Special Mode None Game No. 18 Rogue 17 Adventurer 1 Explorer 0 Win Type - Total 0 Types 0/0/0/0/0/0/0/0/0 Lore% 4 Gallery% 18 Achievement% 17 Wizard Run 0 Options --------- Layout 1 ASCII 0 Keyboard 0 Movement Arrows Keybinds 0 Fullscreen 2 Font 32/Terminus Map View 50x35 Zoom Use 0% Tactical HUD 1 Map Filters NONE Filters NONE Steam 1 RUN: bee685ea-2691-48f8-a8a6-eb0a1b6cb8e2